[Event "Live Chess"]
[Site "Chess.com"]
[Date "2024.06.01"]
[Round "-"]
[White "Mikhail_Golubev"]
[Black "AnotherOneBadPlayer"]
[Result "0-1"]
[WhiteElo "2613"]
[BlackElo "2219"]
[TimeControl "300"]
[EndTime "10:34:30 PDT"]
[Termination "AnotherOneBadPlayer won on time"]

1. e4 {[%clk 0:04:57.1]} 1... e6 {[%clk 0:04:55.4]} 2. d4 {[%clk 0:04:52.6]}
2... d5 {[%clk 0:04:54.1]} 3. e5 {[%clk 0:04:52]} 3... c5 {[%clk 0:04:50.1]} 4.
c3 {[%clk 0:04:50.3]} 4... Bd7 {[%clk 0:04:46.9]} 5. Nf3 {[%clk 0:04:46.1]} 5...
Qb6 {[%clk 0:04:45.5]} 6. Bd3 {[%clk 0:04:39.5]} 6... Bb5 {[%clk 0:04:42]} 7.
dxc5 {[%clk 0:04:26.8]} 7... Bxc5 {[%clk 0:04:36]} 8. O-O {[%clk 0:04:25.4]}
8... a5 {[%clk 0:04:20.3]} 9. Bxb5+ {[%clk 0:04:07.7]} 9... Qxb5 {[%clk
0:04:18.7]} 10. a4 {[%clk 0:04:07.1]} 10... Qb6 {[%clk 0:04:13.5]} 11. Nbd2
{[%clk 0:04:01.4]} 11... Nc6 {[%clk 0:03:38.7]} 12. Nb3 {[%clk 0:03:55.4]} 12...
Nge7 {[%clk 0:03:15]} 13. Nxc5 {[%clk 0:03:38.7]} 13... Qxc5 {[%clk 0:03:13.1]}
14. Be3 {[%clk 0:03:31.9]} 14... Qc4 {[%clk 0:03:10.2]} 15. b3 {[%clk
0:03:28.3]} 15... Qxc3 {[%clk 0:02:49.2]} 16. Rc1 {[%clk 0:03:25.1]} 16... Qb4
{[%clk 0:02:46]} 17. Bc5 {[%clk 0:03:16.8]} 17... Qg4 {[%clk 0:02:42.8]} 18. h3
{[%clk 0:03:06]} 18... Qg6 {[%clk 0:02:34]} 19. Nd4 {[%clk 0:02:52.3]} 19... O-O
{[%clk 0:01:41.8]} 20. Nxc6 {[%clk 0:02:39.6]} 20... Nxc6 {[%clk 0:01:40.4]} 21.
Bxf8 {[%clk 0:02:38.4]} 21... Rxf8 {[%clk 0:01:39.5]} 22. Re1 {[%clk 0:02:33.6]}
22... Qf5 {[%clk 0:01:27]} 23. Qe2 {[%clk 0:02:04.8]} 23... Nd4 {[%clk
0:01:07.3]} 24. Qb2 {[%clk 0:02:03.1]} 24... Nc6 {[%clk 0:00:57.8]} 25. Rc5
{[%clk 0:00:43.4]} 25... f6 {[%clk 0:00:54.5]} 26. exf6 {[%clk 0:00:36.2]} 26...
Rxf6 {[%clk 0:00:53.4]} 27. Rc2 {[%clk 0:00:32.4]} 27... Rg6 {[%clk 0:00:49.6]}
28. Kh1 {[%clk 0:00:29.7]} 28... Qg5 {[%clk 0:00:41.3]} 29. f3 {[%clk
0:00:25.7]} 29... Rh6 {[%clk 0:00:37.9]} 30. Rce2 {[%clk 0:00:23.5]} 30... e5
{[%clk 0:00:34.2]} 31. Qd2 {[%clk 0:00:21.3]} 31... Qxd2 {[%clk 0:00:29.4]} 32.
Rxd2 {[%clk 0:00:20.3]} 32... d4 {[%clk 0:00:29]} 33. Re4 {[%clk 0:00:18.8]}
33... Rg6 {[%clk 0:00:26.4]} 34. Kg1 {[%clk 0:00:18.5]} 34... Rd6 {[%clk
0:00:25.5]} 35. Kf2 {[%clk 0:00:17.8]} 35... Rd8 {[%clk 0:00:24.5]} 36. Rc2
{[%clk 0:00:16.4]} 36... Kf7 {[%clk 0:00:22.9]} 37. Ke1 {[%clk 0:00:15.3]} 37...
Ke6 {[%clk 0:00:22.1]} 38. Rc5 {[%clk 0:00:14.6]} 38... Kd6 {[%clk 0:00:19.8]}
39. Rb5 {[%clk 0:00:14.2]} 39... Rc8 {[%clk 0:00:18]} 40. Kd2 {[%clk 0:00:14.1]}
40... Rf8 {[%clk 0:00:17.2]} 41. Rxb7 {[%clk 0:00:12.8]} 41... Rc8 {[%clk
0:00:15.7]} 42. Rb5 {[%clk 0:00:12]} 42... Nb4 {[%clk 0:00:14.4]} 43. f4 {[%clk
0:00:11.2]} 43... Rc2+ {[%clk 0:00:13.6]} 44. Kd1 {[%clk 0:00:10.9]} 44... Rxg2
{[%clk 0:00:12.9]} 45. fxe5+ {[%clk 0:00:10]} 45... Ke6 {[%clk 0:00:12.1]} 46.
Rxd4 {[%clk 0:00:09.9]} 46... Rg1+ {[%clk 0:00:10.6]} 47. Ke2 {[%clk 0:00:09.1]}
47... Rg2+ {[%clk 0:00:10]} 48. Kf3 {[%clk 0:00:08.4]} 48... Rb2 {[%clk
0:00:09.4]} 49. Rd6+ {[%clk 0:00:07.9]} 49... Kf5 {[%clk 0:00:08.4]} 50. e6+
{[%clk 0:00:07.2]} 50... Kf6 {[%clk 0:00:07.7]} 51. e7+ {[%clk 0:00:06.5]} 51...
Kxe7 {[%clk 0:00:06.9]} 52. Rdb6 {[%clk 0:00:05.4]} 52... Rxb3+ {[%clk 0:00:06]}
53. Kf4 {[%clk 0:00:05.1]} 53... Ra3 {[%clk 0:00:05.3]} 54. Ke5 {[%clk
0:00:04.4]} 54... Nd3+ {[%clk 0:00:04.5]} 55. Kd4 {[%clk 0:00:03.4]} 55... Nb4
{[%clk 0:00:04.4]} 56. Rb7+ {[%clk 0:00:02.7]} 56... Kf6 {[%clk 0:00:04.3]} 57.
R5b6+ {[%clk 0:00:02]} 57... Kg5 {[%clk 0:00:04.2]} 58. Rxg7+ {[%clk 0:00:01.4]}
58... Kh4 {[%clk 0:00:04.1]} 59. Rxh7+ {[%clk 0:00:01.1]} 59... Kg3 {[%clk
0:00:02.9]} 60. Rg7+ {[%clk 0:00:01]} 60... Kf2 {[%clk 0:00:02.7]} 0-1

[Event "Live Chess"]
[Site "Chess.com"]
[Date "2024.06.01"]
[Round "-"]
[White "MagnersCarlsberg2870"]
[Black "nigelst"]
[Result "1-0"]
[WhiteElo "1886"]
[BlackElo "1705"]
[TimeControl "300"]
[EndTime "10:34:42 PDT"]
[Termination "MagnersCarlsberg2870 won by checkmate"]

1. e4 {[%clk 0:04:58.2]} 1... c6 {[%clk 0:04:58.3]} 2. d3 {[%clk 0:04:54.4]}
2... d5 {[%clk 0:04:56.1]} 3. Nd2 {[%clk 0:04:53.5]} 3... e5 {[%clk 0:04:52.4]}
4. Ngf3 {[%clk 0:04:52.4]} 4... Bg4 {[%clk 0:04:50.5]} 5. h3 {[%clk 0:04:51.2]}
5... Bxf3 {[%clk 0:04:47.6]} 6. Qxf3 {[%clk 0:04:46.5]} 6... Nf6 {[%clk
0:04:42.6]} 7. Be2 {[%clk 0:04:42.6]} 7... Bc5 {[%clk 0:04:34.6]} 8. Nb3 {[%clk
0:04:35.7]} 8... Bb6 {[%clk 0:04:32.6]} 9. Bg5 {[%clk 0:04:34.6]} 9... Nbd7
{[%clk 0:04:28.7]} 10. O-O-O {[%clk 0:04:31.8]} 10... O-O {[%clk 0:04:25.8]} 11.
h4 {[%clk 0:04:27.3]} 11... a5 {[%clk 0:04:21.9]} 12. h5 {[%clk 0:04:26.2]}
12... a4 {[%clk 0:04:20.6]} 13. Nd2 {[%clk 0:04:20]} 13... h6 {[%clk 0:04:10]}
14. Bh4 {[%clk 0:04:12.1]} 14... Qc7 {[%clk 0:04:08.9]} 15. g4 {[%clk
0:04:07.9]} 15... dxe4 {[%clk 0:03:56.4]} 16. Nxe4 {[%clk 0:04:02]} 16... Nxe4
{[%clk 0:03:54.5]} 17. dxe4 {[%clk 0:04:00.2]} 17... Bd4 {[%clk 0:03:38.6]} 18.
c3 {[%clk 0:03:51.9]} 18... Bc5 {[%clk 0:03:21]} 19. g5 {[%clk 0:03:49.5]} 19...
hxg5 {[%clk 0:03:16]} 20. Bxg5 {[%clk 0:03:48.5]} 20... Qb6 {[%clk 0:03:07.4]}
21. h6 {[%clk 0:03:43.1]} 21... Bxf2 {[%clk 0:02:48.5]} 22. hxg7 {[%clk
0:03:39.9]} 22... Kxg7 {[%clk 0:02:46.1]} 23. Bh6+ {[%clk 0:03:32.6]} 23... Kg6
{[%clk 0:02:42.1]} 24. Qf5# {[%clk 0:03:29.6]} 1-0

[Event "Live Chess"]
[Site "Chess.com"]
[Date "2024.06.01"]
[Round "-"]
[White "KeithArkell"]
[Black "Dhaydon19"]
[Result "0-1"]
[WhiteElo "2513"]
[BlackElo "2686"]
[TimeControl "300"]
[EndTime "10:34:46 PDT"]
[Termination "Dhaydon19 won by resignation"]

1. d4 {[%clk 0:04:57.7]} 1... c6 {[%clk 0:04:59.5]} 2. Nf3 {[%clk 0:04:56.4]}
2... d5 {[%clk 0:04:59.2]} 3. c4 {[%clk 0:04:52.2]} 3... Nf6 {[%clk 0:04:58.4]}
4. Nc3 {[%clk 0:04:50.8]} 4... e6 {[%clk 0:04:57.6]} 5. cxd5 {[%clk 0:04:50]}
5... cxd5 {[%clk 0:04:56.5]} 6. Bg5 {[%clk 0:04:48.4]} 6... Nc6 {[%clk 0:04:56]}
7. e3 {[%clk 0:04:47.6]} 7... Be7 {[%clk 0:04:55.2]} 8. Bd3 {[%clk 0:04:46.2]}
8... O-O {[%clk 0:04:54.9]} 9. O-O {[%clk 0:04:45.1]} 9... a6 {[%clk 0:04:54.2]}
10. Rc1 {[%clk 0:04:43.2]} 10... Bd7 {[%clk 0:04:53.4]} 11. Ne5 {[%clk
0:04:42.1]} 11... Be8 {[%clk 0:04:50.5]} 12. Na4 {[%clk 0:04:29.7]} 12... Nxe5
{[%clk 0:04:48.8]} 13. dxe5 {[%clk 0:04:28.6]} 13... Nd7 {[%clk 0:04:38]} 14.
Bxe7 {[%clk 0:04:27.3]} 14... Qxe7 {[%clk 0:04:37.6]} 15. f4 {[%clk 0:04:25]}
15... b5 {[%clk 0:04:33.2]} 16. Nc3 {[%clk 0:04:22.2]} 16... f6 {[%clk
0:04:32.3]} 17. exf6 {[%clk 0:04:21]} 17... Nxf6 {[%clk 0:04:31.9]} 18. Ne2
{[%clk 0:04:09.9]} 18... e5 {[%clk 0:04:23.6]} 19. Qd2 {[%clk 0:04:08]} 19...
exf4 {[%clk 0:04:10.6]} 20. Nxf4 {[%clk 0:04:00.7]} 20... Bf7 {[%clk 0:04:09.6]}
21. Bc2 {[%clk 0:03:56.4]} 21... Rfe8 {[%clk 0:04:08.3]} 22. Rfe1 {[%clk
0:03:53]} 22... Rac8 {[%clk 0:04:03]} 23. Bb3 {[%clk 0:03:50.3]} 23... Rxc1
{[%clk 0:03:55.5]} 24. Qxc1 {[%clk 0:03:49]} 24... Qe5 {[%clk 0:03:46.5]} 25.
Qd2 {[%clk 0:03:23]} 25... d4 {[%clk 0:03:41.5]} 26. Bxf7+ {[%clk 0:03:20.1]}
26... Kxf7 {[%clk 0:03:40.1]} 27. Nd3 {[%clk 0:03:12.5]} 27... Qd5 {[%clk
0:03:22.4]} 28. Nf4 {[%clk 0:03:01.8]} 28... Qe4 {[%clk 0:03:19.8]} 29. Qd3
{[%clk 0:02:52.3]} 29... dxe3 {[%clk 0:03:05.7]} 30. Qxe4 {[%clk 0:02:51]} 30...
Rxe4 {[%clk 0:03:04.4]} 31. Nd3 {[%clk 0:02:44.6]} 31... Nd5 {[%clk 0:02:57.2]}
32. Nc5 {[%clk 0:02:42.6]} 32... Rd4 {[%clk 0:02:56.1]} 33. Nxa6 {[%clk
0:02:34.9]} 33... Rd2 {[%clk 0:02:54]} 34. a4 {[%clk 0:02:01.2]} 34... bxa4
{[%clk 0:02:50.2]} 35. Nc5 {[%clk 0:02:00.4]} 35... Rxb2 {[%clk 0:02:47.3]} 36.
Nxa4 {[%clk 0:01:59.4]} 36... Rc2 {[%clk 0:02:46.6]} 37. Rb1 {[%clk 0:01:54.9]}
37... Nf4 {[%clk 0:02:43]} 38. g3 {[%clk 0:01:44.4]} 38... Nd3 {[%clk
0:02:36.4]} 39. Rf1+ {[%clk 0:01:09.6]} 39... Kg6 {[%clk 0:02:34.1]} 0-1

[Event "Live Chess"]
[Site "Chess.com"]
[Date "2024.06.01"]
[Round "-"]
[White "Duke_of_Bebington"]
[Black "RuslanChessN"]
[Result "1-0"]
[WhiteElo "1637"]
[BlackElo "1944"]
[TimeControl "300"]
[EndTime "10:34:48 PDT"]
[Termination "Duke_of_Bebington won by resignation"]

1. e4 {[%clk 0:04:57.9]} 1... c6 {[%clk 0:04:58.2]} 2. d4 {[%clk 0:04:53.4]}
2... d5 {[%clk 0:04:58.1]} 3. e5 {[%clk 0:04:52.5]} 3... Bf5 {[%clk 0:04:55]} 4.
g4 {[%clk 0:04:51.3]} 4... Bg6 {[%clk 0:04:53.2]} 5. h4 {[%clk 0:04:50.1]} 5...
h5 {[%clk 0:04:52.1]} 6. e6 {[%clk 0:04:45]} 6... hxg4 {[%clk 0:04:45.5]} 7.
Qxg4 {[%clk 0:04:38]} 7... Nf6 {[%clk 0:04:38.5]} 8. Qg2 {[%clk 0:04:28.4]} 8...
Bxc2 {[%clk 0:04:30.1]} 9. exf7+ {[%clk 0:04:26.1]} 9... Kxf7 {[%clk 0:04:28.4]}
10. Nf3 {[%clk 0:04:24.4]} 10... Nbd7 {[%clk 0:04:17.1]} 11. Ng5+ {[%clk
0:04:18.4]} 11... Ke8 {[%clk 0:04:13.1]} 12. Bf4 {[%clk 0:04:01.6]} 12... Qb6
{[%clk 0:04:05.5]} 13. Nd2 {[%clk 0:03:45.7]} 13... Qxb2 {[%clk 0:04:01.9]} 14.
Rd1 {[%clk 0:03:32.2]} 14... Bxd1 {[%clk 0:03:49.7]} 15. Kxd1 {[%clk 0:03:26]}
15... Qa1+ {[%clk 0:02:54.6]} 16. Ke2 {[%clk 0:03:23.2]} 16... Qxd4 {[%clk
0:02:52.9]} 17. Ne6 {[%clk 0:03:21.6]} 17... Qe4+ {[%clk 0:02:30.5]} 18. Nxe4
{[%clk 0:03:20.2]} 1-0

[Event "Live Chess"]
[Site "Chess.com"]
[Date "2024.06.01"]
[Round "-"]
[White "yarek"]
[Black "karina55"]
[Result "0-1"]
[WhiteElo "1726"]
[BlackElo "1798"]
[TimeControl "300"]
[EndTime "10:34:51 PDT"]
[Termination "karina55 won on time"]

1. e4 {[%clk 0:04:56.8]} 1... e5 {[%clk 0:04:57.9]} 2. d4 {[%clk 0:04:55.7]}
2... exd4 {[%clk 0:04:55.8]} 3. Qxd4 {[%clk 0:04:55.6]} 3... Nc6 {[%clk
0:04:53]} 4. Qe3 {[%clk 0:04:55]} 4... Bb4+ {[%clk 0:04:32.7]} 5. Bd2 {[%clk
0:04:49]} 5... Bxd2+ {[%clk 0:04:30.7]} 6. Nxd2 {[%clk 0:04:44]} 6... Qe7 {[%clk
0:04:27.4]} 7. Bc4 {[%clk 0:04:18.4]} 7... Nf6 {[%clk 0:04:18.9]} 8. f3 {[%clk
0:04:13]} 8... d5 {[%clk 0:04:12.2]} 9. Bb3 {[%clk 0:04:01.4]} 9... d4 {[%clk
0:03:47.6]} 10. Qf4 {[%clk 0:03:46.3]} 10... O-O {[%clk 0:03:45.4]} 11. O-O-O
{[%clk 0:03:44.1]} 11... Be6 {[%clk 0:03:40]} 12. g4 {[%clk 0:03:36.6]} 12... a5
{[%clk 0:03:28.7]} 13. g5 {[%clk 0:03:09]} 13... Ne8 {[%clk 0:03:25.5]} 14. Ne2
{[%clk 0:03:00.7]} 14... a4 {[%clk 0:03:19.2]} 15. Bxe6 {[%clk 0:02:58]} 15...
fxe6 {[%clk 0:03:17.1]} 16. Qg3 {[%clk 0:02:49.9]} 16... e5 {[%clk 0:03:15.5]}
17. Nc4 {[%clk 0:02:16]} 17... Qe6 {[%clk 0:03:02.3]} 18. Na3 {[%clk 0:01:24.9]}
18... Qxa2 {[%clk 0:02:56.8]} 19. f4 {[%clk 0:00:57]} 19... Nd6 {[%clk
0:02:43.8]} 20. fxe5 {[%clk 0:00:28.2]} 20... Nxe4 {[%clk 0:02:38.7]} 21. Qg2
{[%clk 0:00:17]} 21... Nf2 {[%clk 0:02:36.4]} 22. Rhf1 {[%clk 0:00:09.7]} 22...
Nxd1 {[%clk 0:02:32.5]} 23. Rxd1 {[%clk 0:00:09.3]} 23... Qa1+ {[%clk
0:02:21.6]} 24. Nb1 {[%clk 0:00:07.4]} 24... Rad8 {[%clk 0:02:13]} 25. Qe4
{[%clk 0:00:02.9]} 25... Rde8 {[%clk 0:01:43.3]} 26. Nxd4 {[%clk 0:00:01.3]}
26... Rxe5 {[%clk 0:01:39.8]} 0-1

[Event "Live Chess"]
[Site "Chess.com"]
[Date "2024.06.01"]
[Round "-"]
[White "SavagePawn7"]
[Black "vincents82"]
[Result "0-1"]
[WhiteElo "684"]
[BlackElo "2123"]
[TimeControl "300"]
[EndTime "10:34:51 PDT"]
[Termination "vincents82 won by resignation"]

1. e4 {[%clk 0:04:54.5]} 1... c5 {[%clk 0:04:55.9]} 2. d4 {[%clk 0:04:52.1]}
2... cxd4 {[%clk 0:04:54.8]} 3. c3 {[%clk 0:04:50.8]} 3... dxc3 {[%clk
0:04:52.4]} 4. Nxc3 {[%clk 0:04:49.3]} 4... Nc6 {[%clk 0:04:51.1]} 5. Nf3 {[%clk
0:04:46.9]} 5... d6 {[%clk 0:04:50.2]} 6. Bc4 {[%clk 0:04:45]} 6... Be6 {[%clk
0:04:48.2]} 7. Bxe6 {[%clk 0:04:35.9]} 7... fxe6 {[%clk 0:04:47.2]} 8. O-O
{[%clk 0:04:24.2]} 8... Nf6 {[%clk 0:04:45.5]} 9. Qe2 {[%clk 0:04:12.7]} 9... e5
{[%clk 0:04:43.2]} 10. Bg5 {[%clk 0:04:06.3]} 10... g6 {[%clk 0:04:41.2]} 11.
Rfd1 {[%clk 0:04:01.4]} 11... Bg7 {[%clk 0:04:39.1]} 12. Nd5 {[%clk 0:03:47.2]}
12... Nxd5 {[%clk 0:04:34.8]} 13. exd5 {[%clk 0:03:45.7]} 13... Nd4 {[%clk
0:04:33.4]} 14. Nxd4 {[%clk 0:03:41.9]} 14... exd4 {[%clk 0:04:32.4]} 15. Re1
{[%clk 0:03:35.1]} 15... O-O {[%clk 0:04:23]} 16. Qxe7 {[%clk 0:03:30]} 16...
Qb6 {[%clk 0:04:15.7]} 17. Qe6+ {[%clk 0:03:22.4]} 17... Kh8 {[%clk 0:04:13]}
18. Re2 {[%clk 0:02:38.4]} 18... d3 {[%clk 0:04:10.5]} 19. Rd2 {[%clk
0:02:26.3]} 19... Rae8 {[%clk 0:03:59.9]} 20. Qg4 {[%clk 0:02:15]} 20... Bd4
{[%clk 0:03:13.9]} 21. Qg3 {[%clk 0:01:34.5]} 21... Re2 {[%clk 0:03:04]} 22.
Rxe2 {[%clk 0:01:26.8]} 22... dxe2 {[%clk 0:03:01.7]} 23. Re1 {[%clk 0:01:15]}
23... Bxf2+ {[%clk 0:02:57.7]} 0-1

[Event "Live Chess"]
[Site "Chess.com"]
[Date "2024.06.01"]
[Round "-"]
[White "blunderabit"]
[Black "SirGerhard"]
[Result "0-1"]
[WhiteElo "1814"]
[BlackElo "2771"]
[TimeControl "300"]
[EndTime "10:34:52 PDT"]
[Termination "SirGerhard won on time"]

1. e4 {[%clk 0:04:54.9]} 1... c5 {[%clk 0:04:59]} 2. Nf3 {[%clk 0:04:52.6]} 2...
d6 {[%clk 0:04:58.5]} 3. d4 {[%clk 0:04:50.4]} 3... cxd4 {[%clk 0:04:57.8]} 4.
Nxd4 {[%clk 0:04:49.9]} 4... Nf6 {[%clk 0:04:57.3]} 5. Nc3 {[%clk 0:04:48.8]}
5... a6 {[%clk 0:04:56.6]} 6. Bd3 {[%clk 0:04:45.3]} 6... Nc6 {[%clk 0:04:54.9]}
7. Nb3 {[%clk 0:04:38.4]} 7... g6 {[%clk 0:04:51.6]} 8. f3 {[%clk 0:04:28.9]}
8... Bg7 {[%clk 0:04:50.7]} 9. Be3 {[%clk 0:04:28.3]} 9... d5 {[%clk 0:04:49.2]}
10. exd5 {[%clk 0:04:23.5]} 10... Nxd5 {[%clk 0:04:48.3]} 11. Nxd5 {[%clk
0:04:22.1]} 11... Qxd5 {[%clk 0:04:47.5]} 12. c3 {[%clk 0:04:20.4]} 12... O-O
{[%clk 0:04:46.8]} 13. Qe2 {[%clk 0:04:16.1]} 13... Ne5 {[%clk 0:04:43.8]} 14.
Be4 {[%clk 0:04:11.6]} 14... Qc4 {[%clk 0:04:42.5]} 15. Kf2 {[%clk 0:04:00.1]}
15... Qxe2+ {[%clk 0:04:38.1]} 16. Kxe2 {[%clk 0:03:58.7]} 16... Nc4 {[%clk
0:04:38]} 17. Rab1 {[%clk 0:03:54.7]} 17... Nxe3 {[%clk 0:04:35.4]} 18. Kxe3
{[%clk 0:03:53.5]} 18... Rb8 {[%clk 0:04:31.9]} 19. Rhd1 {[%clk 0:03:49.8]}
19... Be5 {[%clk 0:04:30.7]} 20. g3 {[%clk 0:03:46.5]} 20... Bd6 {[%clk
0:04:29.8]} 21. c4 {[%clk 0:03:41.6]} 21... b6 {[%clk 0:04:28]} 22. Kf2 {[%clk
0:03:34.6]} 22... Be6 {[%clk 0:04:22.5]} 23. Rbc1 {[%clk 0:03:31.9]} 23... Rfc8
{[%clk 0:04:21]} 24. Nd2 {[%clk 0:03:26.7]} 24... b5 {[%clk 0:04:16.6]} 25. Bd5
{[%clk 0:03:11.8]} 25... Bxd5 {[%clk 0:04:04.5]} 26. cxd5 {[%clk 0:03:10]} 26...
Be5 {[%clk 0:04:04]} 27. b3 {[%clk 0:02:39.7]} 27... Bb2 {[%clk 0:04:02.6]} 28.
Rxc8+ {[%clk 0:02:27.3]} 28... Rxc8 {[%clk 0:04:01.5]} 29. Ke3 {[%clk
0:02:22.5]} 29... Rc2 {[%clk 0:03:51.7]} 30. h4 {[%clk 0:02:19.7]} 30... Be5
{[%clk 0:03:25]} 31. g4 {[%clk 0:02:06.4]} 31... Rxa2 {[%clk 0:03:23.2]} 32. h5
{[%clk 0:01:54.8]} 32... Kg7 {[%clk 0:03:18.6]} 33. f4 {[%clk 0:01:37.9]} 33...
Bd6 {[%clk 0:03:12.8]} 34. Ne4 {[%clk 0:01:34.1]} 34... Rb2 {[%clk 0:03:11.9]}
35. Rd3 {[%clk 0:01:30.2]} 35... Bb4 {[%clk 0:03:07.9]} 36. Ng5 {[%clk
0:01:16.2]} 36... a5 {[%clk 0:03:04]} 37. h6+ {[%clk 0:01:09.4]} 37... Kg8
{[%clk 0:02:58.9]} 38. Ne4 {[%clk 0:00:35.7]} 38... a4 {[%clk 0:02:41]} 39. bxa4
{[%clk 0:00:29.3]} 39... bxa4 {[%clk 0:02:40.2]} 40. d6 {[%clk 0:00:26]} 40...
exd6 {[%clk 0:02:39.5]} 41. Nf6+ {[%clk 0:00:17.5]} 41... Kh8 {[%clk 0:02:30.8]}
42. Kf3 {[%clk 0:00:09.2]} 42... Rb3 {[%clk 0:02:20.2]} 0-1

[Event "Live Chess"]
[Site "Chess.com"]
[Date "2024.06.01"]
[Round "-"]
[White "Isambard_Thomas"]
[Black "PureDashingOctopus"]
[Result "0-1"]
[WhiteElo "2137"]
[BlackElo "2234"]
[TimeControl "300"]
[EndTime "10:34:54 PDT"]
[Termination "PureDashingOctopus won by resignation"]

1. d4 {[%clk 0:04:58.4]} 1... Nf6 {[%clk 0:04:53.6]} 2. Nf3 {[%clk 0:04:56.9]}
2... g6 {[%clk 0:04:52.3]} 3. Bg5 {[%clk 0:04:56.4]} 3... Bg7 {[%clk 0:04:51.4]}
4. e3 {[%clk 0:04:55.8]} 4... d5 {[%clk 0:04:50.3]} 5. Bd3 {[%clk 0:04:55.2]}
5... O-O {[%clk 0:04:49.9]} 6. Nbd2 {[%clk 0:04:54]} 6... c5 {[%clk 0:04:49.1]}
7. c3 {[%clk 0:04:53.1]} 7... Nc6 {[%clk 0:04:47.7]} 8. Qe2 {[%clk 0:04:52.1]}
8... b6 {[%clk 0:04:43.7]} 9. O-O-O {[%clk 0:04:50]} 9... Bb7 {[%clk 0:04:42.7]}
10. h4 {[%clk 0:04:48.8]} 10... h5 {[%clk 0:04:40.4]} 11. Bxf6 {[%clk
0:04:46.7]} 11... Bxf6 {[%clk 0:04:39.3]} 12. Ng5 {[%clk 0:04:45.6]} 12... Rc8
{[%clk 0:04:34.8]} 13. g4 {[%clk 0:04:42.5]} 13... cxd4 {[%clk 0:04:33.4]} 14.
exd4 {[%clk 0:04:41.7]} 14... Nxd4 {[%clk 0:04:32.4]} 15. Qe3 {[%clk 0:04:36.6]}
15... hxg4 {[%clk 0:04:28.9]} 16. Kb1 {[%clk 0:04:32.3]} 16... Nf5 {[%clk
0:04:22.2]} 17. Bxf5 {[%clk 0:04:29.9]} 17... gxf5 {[%clk 0:04:22.1]} 18. Rhg1
{[%clk 0:04:05]} 18... d4 {[%clk 0:04:18.3]} 19. cxd4 {[%clk 0:04:03.5]} 19...
Qxd4 {[%clk 0:04:16.7]} 20. Qb3 {[%clk 0:04:01.5]} 20... Bd5 {[%clk 0:03:59.5]}
21. Qa3 {[%clk 0:03:52.3]} 21... Qc5 {[%clk 0:03:01.9]} 22. Qxc5 {[%clk
0:03:40.7]} 22... Rxc5 {[%clk 0:02:59.6]} 23. Nf1 {[%clk 0:03:33.5]} 23... Bxg5
{[%clk 0:02:56.9]} 24. hxg5 {[%clk 0:03:31.2]} 24... Bf3 {[%clk 0:02:55.5]} 25.
Rd2 {[%clk 0:03:26.9]} 25... Be4+ {[%clk 0:02:54.3]} 0-1

[Event "Live Chess"]
[Site "Chess.com"]
[Date "2024.06.01"]
[Round "-"]
[White "MellowAesthetic"]
[Black "booktrunk"]
[Result "1-0"]
[WhiteElo "2068"]
[BlackElo "1400"]
[TimeControl "300"]
[EndTime "10:35:21 PDT"]
[Termination "MellowAesthetic won by resignation"]

1. e4 {[%clk 0:04:58.3]} 1... b6 {[%clk 0:04:57.7]} 2. d4 {[%clk 0:04:56.5]}
2... Bb7 {[%clk 0:04:57.6]} 3. Nc3 {[%clk 0:04:52.3]} 3... e6 {[%clk 0:04:54]}
4. Nf3 {[%clk 0:04:47.7]} 4... c5 {[%clk 0:04:42.3]} 5. d5 {[%clk 0:04:39]} 5...
exd5 {[%clk 0:04:40.3]} 6. exd5 {[%clk 0:04:38.1]} 6... Qe7+ {[%clk 0:04:38.5]}
7. Be2 {[%clk 0:04:32.5]} 7... d6 {[%clk 0:04:36.5]} 8. O-O {[%clk 0:04:30.1]}
8... Nd7 {[%clk 0:04:33.9]} 9. Re1 {[%clk 0:04:26.7]} 9... O-O-O {[%clk
0:04:29.6]} 10. a4 {[%clk 0:03:52.3]} 10... f6 {[%clk 0:04:25.5]} 11. a5 {[%clk
0:03:50.7]} 11... Kb8 {[%clk 0:04:18]} 12. axb6 {[%clk 0:03:37.3]} 12... Nxb6
{[%clk 0:04:16.6]} 13. Bb5 {[%clk 0:03:15.5]} 13... Qc7 {[%clk 0:04:14.5]} 14.
Bf4 {[%clk 0:02:58]} 14... g5 {[%clk 0:04:09.9]} 15. Bg3 {[%clk 0:02:56.8]}
15... Nh6 {[%clk 0:04:05.8]} 16. Qd3 {[%clk 0:02:31.6]} 16... Bg7 {[%clk
0:04:01]} 17. Re6 {[%clk 0:01:51.6]} 17... f5 {[%clk 0:03:46.2]} 18. Nxg5 {[%clk
0:01:45]} 18... Bxc3 {[%clk 0:03:36.5]} 19. bxc3 {[%clk 0:01:41.8]} 19... Ng4
{[%clk 0:03:35.3]} 20. c4 {[%clk 0:01:36.6]} 20... Rhf8 {[%clk 0:03:30.4]} 21.
Bf4 {[%clk 0:01:26.5]} 21... Rf6 {[%clk 0:03:24.6]} 22. Rae1 {[%clk 0:01:23.8]}
22... Rxe6 {[%clk 0:03:22.7]} 23. Rxe6 {[%clk 0:01:21]} 23... Rf8 {[%clk
0:03:21.4]} 24. Bxd6 {[%clk 0:01:17.9]} 1-0